[Event "Titled Tuesday Blitz April 26 Early 2022"]
[White "Manukian, Artak"]
[Black "Sargissyan, Sargis"]
[WhiteFideId "13301373"]
[BlackFideId "13303210"]
[WhiteElo "2336"]
[BlackElo "2174"]
[Result "0-1"]
[Round "11"]
[TimeControl "180+1"]
[Date "2022.04.26"]
[WhiteClock "0:00:13"]
[BlackClock "0:00:25"]

1. e4 {[%clk 0:03:00]}  c5 {[%clk 0:02:57]} 2. Nf3 {[%clk 0:03:00]}  d6 {[%clk 0:02:58]} 3. Bb5+ {[%clk 0:03:00]}  Nd7 {[%clk 0:02:57]} 4. O-O {[%clk 0:02:59]}  a6 {[%clk 0:02:51]} 5. Bd3 {[%clk 0:02:58]}  Ngf6 {[%clk 0:02:51]} 6. a4 {[%clk 0:02:57]}  g6 {[%clk 0:02:33]} 7. Re1 {[%clk 0:02:53]}  Bg7 {[%clk 0:02:34]} 8. c3 {[%clk 0:02:53]}  Ne5 {[%clk 0:02:32]} 9. Nxe5 {[%clk 0:02:13]}  dxe5 {[%clk 0:02:31]} 10. Bf1 {[%clk 0:02:13]}  O-O {[%clk 0:01:56]} 11. d3 {[%clk 0:02:05]}  c4 {[%clk 0:01:47]} 12. Bg5 {[%clk 0:01:38]}  cxd3 {[%clk 0:01:39]} 13. Qxd3 {[%clk 0:01:37]}  Be6 {[%clk 0:01:34]} 14. Nd2 {[%clk 0:01:26]}  Qc7 {[%clk 0:01:33]} 15. Nc4 {[%clk 0:01:12]}  Rfd8 {[%clk 0:01:30]} 16. Qe2 {[%clk 0:01:12]}  h6 {[%clk 0:01:03]} 17. Bxf6 {[%clk 0:01:05]}  Bxf6 {[%clk 0:01:03]} 18. a5 {[%clk 0:00:59]}  Bg5 {[%clk 0:01:00]} 19. Nb6 {[%clk 0:00:59]}  Rab8 {[%clk 0:00:58]} 20. Red1 {[%clk 0:00:58]}  Rxd1 {[%clk 0:00:51]} 21. Rxd1 {[%clk 0:00:57]}  Rd8 {[%clk 0:00:52]} 22. g3 {[%clk 0:00:44]}  h5 {[%clk 0:00:51]} 23. h4 {[%clk 0:00:38]}  Bh6 {[%clk 0:00:51]} 24. Rd3 {[%clk 0:00:23]}  Kg7 {[%clk 0:00:48]} 25. b4 {[%clk 0:00:18]}  Rd6 {[%clk 0:00:34]} 26. Rxd6 {[%clk 0:00:18]}  Qxd6 {[%clk 0:00:35]} 27. Qd3 {[%clk 0:00:18]}  Qxd3 {[%clk 0:00:32]} 28. Bxd3 {[%clk 0:00:19]}  Bd2 {[%clk 0:00:31]} 29. Na4 {[%clk 0:00:18]}  Bd7 {[%clk 0:00:25]} 30. Nc5 {[%clk 0:00:18]}  Bc6 {[%clk 0:00:26]} 31. b5 {[%clk 0:00:11]}  axb5 {[%clk 0:00:26]} 32. a6 {[%clk 0:00:10]}  bxa6 {[%clk 0:00:26]} 33. Nxa6 {[%clk 0:00:10]}  Bxc3 {[%clk 0:00:26]} 34. f3 {[%clk 0:00:09]}  b4 {[%clk 0:00:24]} 35. Nc5 {[%clk 0:00:09]}  Bd4+ {[%clk 0:00:23]} 36. Kf1 {[%clk 0:00:10]}  Bxc5 {[%clk 0:00:23]} 37. Ke2 {[%clk 0:00:11]}  b3 {[%clk 0:00:24]} 38. Kd1 {[%clk 0:00:12]}  Bd4 {[%clk 0:00:24]} 39. Kc1 {[%clk 0:00:12]}  b2+ {[%clk 0:00:24]} 40. Kb1 {[%clk 0:00:12]}  Ba4 {[%clk 0:00:24]} 41. Bc2 {[%clk 0:00:12]}  Bxc2+ {[%clk 0:00:25]} 42. Kxc2 {[%clk 0:00:13]}  f5 {[%clk 0:00:25]} 0-1


[Site "https://www.chess.com"]

[Event "Titled Tuesday Blitz April 26 Early 2022"]
[White "Martinez Alcantara, Jose Eduardo"]
[Black "Xiong, Jeffery"]
[WhiteFideId "3805662"]
[BlackFideId "2047640"]
[WhiteElo "2690"]
[BlackElo "2727"]
[Result "1-0"]
[Round "11"]
[TimeControl "180+1"]
[Date "2022.04.26"]
[WhiteClock "0:00:06"]
[BlackClock "0:00:46"]

1. e4 {[%clk 0:03:00]}  c5 {[%clk 0:03:00]} 2. Nf3 {[%clk 0:03:01]}  d6 {[%clk 0:03:00]} 3. Bb5+ {[%clk 0:03:02]}  Nc6 {[%clk 0:03:01]} 4. O-O {[%clk 0:02:59]}  Bd7 {[%clk 0:03:01]} 5. Re1 {[%clk 0:02:59]}  Nf6 {[%clk 0:03:02]} 6. h3 {[%clk 0:02:59]}  Ne5 {[%clk 0:02:53]} 7. Bxd7+ {[%clk 0:02:55]}  Qxd7 {[%clk 0:02:51]} 8. d3 {[%clk 0:02:54]}  e6 {[%clk 0:02:51]} 9. Nxe5 {[%clk 0:02:52]}  dxe5 {[%clk 0:02:50]} 10. Nd2 {[%clk 0:02:50]}  Bd6 {[%clk 0:02:51]} 11. a4 {[%clk 0:02:50]}  Bc7 {[%clk 0:02:41]} 12. Qf3 {[%clk 0:02:50]}  O-O {[%clk 0:02:41]} 13. Nc4 {[%clk 0:02:50]}  Ne8 {[%clk 0:02:39]} 14. a5 {[%clk 0:02:42]}  Rb8 {[%clk 0:02:32]} 15. Be3 {[%clk 0:02:41]}  b5 {[%clk 0:02:26]} 16. axb6 {[%clk 0:02:41]}  axb6 {[%clk 0:02:27]} 17. Ra7 {[%clk 0:02:26]}  Qc6 {[%clk 0:02:24]} 18. Rea1 {[%clk 0:02:14]}  f6 {[%clk 0:02:18]} 19. Qg4 {[%clk 0:02:01]}  Rf7 {[%clk 0:02:14]} 20. Qh5 {[%clk 0:01:55]}  Re7 {[%clk 0:02:10]} 21. Bd2 {[%clk 0:01:50]}  Bd8 {[%clk 0:02:07]} 22. f4 {[%clk 0:01:37]}  exf4 {[%clk 0:02:07]} 23. Bxf4 {[%clk 0:01:36]}  Rc8 {[%clk 0:02:07]} 24. Rxe7 {[%clk 0:01:30]}  Bxe7 {[%clk 0:02:08]} 25. Ra7 {[%clk 0:01:30]}  g6 {[%clk 0:02:08]} 26. Qf3 {[%clk 0:01:25]}  Bd8 {[%clk 0:02:01]} 27. e5 {[%clk 0:01:04]}  Qxf3 {[%clk 0:01:57]} 28. gxf3 {[%clk 0:01:04]}  fxe5 {[%clk 0:01:57]} 29. Bxe5 {[%clk 0:01:03]}  b5 {[%clk 0:01:58]} 30. Nd2 {[%clk 0:00:58]}  c4 {[%clk 0:01:57]} 31. Rb7 {[%clk 0:00:56]}  cxd3 {[%clk 0:01:55]} 32. cxd3 {[%clk 0:00:57]}  Rc1+ {[%clk 0:01:45]} 33. Nf1 {[%clk 0:00:39]}  Bh4 {[%clk 0:01:27]} 34. Rxb5 {[%clk 0:00:34]}  Nf6 {[%clk 0:01:27]} 35. Rb4 {[%clk 0:00:27]}  Nd5 {[%clk 0:01:27]} 36. Rxh4 {[%clk 0:00:25]}  Ne3 {[%clk 0:01:28]} 37. Kf2 {[%clk 0:00:21]}  Nxf1 {[%clk 0:01:28]} 38. Rc4 {[%clk 0:00:19]}  Rb1 {[%clk 0:01:12]} 39. Ke2 {[%clk 0:00:18]}  h5 {[%clk 0:01:08]} 40. h4 {[%clk 0:00:19]}  Nh2 {[%clk 0:01:04]} 41. Rc2 {[%clk 0:00:11]}  Nf1 {[%clk 0:01:04]} 42. b4 {[%clk 0:00:10]}  g5 {[%clk 0:01:04]} 43. hxg5 {[%clk 0:00:10]}  h4 {[%clk 0:01:04]} 44. Rc4 {[%clk 0:00:08]}  h3 {[%clk 0:01:05]} 45. Rh4 {[%clk 0:00:09]}  h2 {[%clk 0:01:05]} 46. Kf2 {[%clk 0:00:07]}  Kf7 {[%clk 0:00:59]} 47. Rh6 {[%clk 0:00:05]}  Ne3 {[%clk 0:00:47]} 48. g6+ {[%clk 0:00:06]}  Ke7 {[%clk 0:00:46]} 49. Rh7+ {[%clk 0:00:06]}  Ke8 {[%clk 0:00:45]} 50. Rxh2 {[%clk 0:00:05]}  Nf5 {[%clk 0:00:45]} 51. Rh8+ {[%clk 0:00:05]}  Ke7 {[%clk 0:00:46]} 52. g7 {[%clk 0:00:06]} 1-0


[Site "https://www.chess.com"]

[Event "Titled Tuesday Blitz April 26 Early 2022"]
[White "Matveeva, Olga"]
[Black "Padmini, Rout"]
[WhiteFideId "24107018"]
[BlackFideId "5029295"]
[WhiteElo "2083"]
[BlackElo "2181"]
[Result "0-1"]
[Round "11"]
[TimeControl "180+1"]
[Date "2022.04.26"]
[WhiteClock "0:00:33"]
[BlackClock "0:00:31"]

1. d4 {[%clk 0:03:00]}  Nf6 {[%clk 0:02:58]} 2. c4 {[%clk 0:03:00]}  e5 {[%clk 0:02:58]} 3. dxe5 {[%clk 0:03:00]}  Ng4 {[%clk 0:02:58]} 4. Nf3 {[%clk 0:02:59]}  Nc6 {[%clk 0:02:58]} 5. e3 {[%clk 0:02:54]}  Bb4+ {[%clk 0:02:54]} 6. Bd2 {[%clk 0:02:49]}  Bxd2+ {[%clk 0:02:53]} 7. Nbxd2 {[%clk 0:02:49]}  Ngxe5 {[%clk 0:02:54]} 8. Be2 {[%clk 0:02:46]}  O-O {[%clk 0:02:54]} 9. O-O {[%clk 0:02:46]}  d6 {[%clk 0:02:55]} 10. Nxe5 {[%clk 0:02:41]}  dxe5 {[%clk 0:02:54]} 11. Qc2 {[%clk 0:02:34]}  Qe7 {[%clk 0:02:54]} 12. Rfd1 {[%clk 0:02:33]}  Be6 {[%clk 0:02:44]} 13. a3 {[%clk 0:02:28]}  Rad8 {[%clk 0:02:29]} 14. b4 {[%clk 0:02:25]}  f5 {[%clk 0:02:25]} 15. Nb3 {[%clk 0:02:21]}  b6 {[%clk 0:02:20]} 16. c5 {[%clk 0:02:14]}  Qf7 {[%clk 0:02:02]} 17. Rab1 {[%clk 0:02:00]}  Rxd1+ {[%clk 0:01:52]} 18. Bxd1 {[%clk 0:02:01]}  b5 {[%clk 0:01:35]} 19. Be2 {[%clk 0:01:45]}  a6 {[%clk 0:01:35]} 20. Nd2 {[%clk 0:01:44]}  Rd8 {[%clk 0:01:27]} 21. Nf3 {[%clk 0:01:39]}  Qf6 {[%clk 0:01:23]} 22. h3 {[%clk 0:01:38]}  e4 {[%clk 0:01:19]} 23. Nh2 {[%clk 0:01:31]}  Ne5 {[%clk 0:01:12]} 24. Rd1 {[%clk 0:01:23]}  Bc4 {[%clk 0:00:57]} 25. Nf1 {[%clk 0:01:02]}  Rxd1 {[%clk 0:00:53]} 26. Qxd1 {[%clk 0:01:01]}  Nd3 {[%clk 0:00:53]} 27. Bxd3 {[%clk 0:00:57]}  exd3 {[%clk 0:00:51]} 28. Nd2 {[%clk 0:00:49]}  Qc3 {[%clk 0:00:41]} 29. Nb1 {[%clk 0:00:48]}  Qc2 {[%clk 0:00:39]} 30. Qh5 {[%clk 0:00:38]}  Qxb1+ {[%clk 0:00:39]} 31. Kh2 {[%clk 0:00:38]}  h6 {[%clk 0:00:33]} 32. Qxf5 {[%clk 0:00:36]}  Qb3 {[%clk 0:00:30]} 33. Qc8+ {[%clk 0:00:34]}  Kh7 {[%clk 0:00:30]} 34. Qf5+ {[%clk 0:00:34]}  Kh8 {[%clk 0:00:31]} 35. Qc8+ {[%clk 0:00:33]}  Bg8 {[%clk 0:00:31]} 36. Qxc7 {[%clk 0:00:33]}  d2 {[%clk 0:00:31]} 0-1


[Site "https://www.chess.com"]

[Event "Titled Tuesday Blitz April 26 Early 2022"]
[White "Migot, Tangi"]
[Black "Jarocka, Liwia"]
[WhiteFideId "662445"]
[BlackFideId "21807558"]
[WhiteElo "2514"]
[BlackElo "1896"]
[Result "1/2-1/2"]
[Round "11"]
[TimeControl "180+1"]
[Date "2022.04.26"]
[WhiteClock "0:00:46"]
[BlackClock "0:00:40"]

1. e4 {[%clk 0:03:00]}  c5 {[%clk 0:02:59]} 2. Nc3 {[%clk 0:03:00]}  Nc6 {[%clk 0:02:52]} 3. Bc4 {[%clk 0:03:01]}  e6 {[%clk 0:02:51]} 4. d3 {[%clk 0:03:01]}  Nf6 {[%clk 0:02:52]} 5. a3 {[%clk 0:03:00]}  d5 {[%clk 0:02:52]} 6. Ba2 {[%clk 0:03:00]}  Be7 {[%clk 0:02:52]} 7. Nf3 {[%clk 0:02:59]}  O-O {[%clk 0:02:50]} 8. exd5 {[%clk 0:02:54]}  Nxd5 {[%clk 0:02:49]} 9. Bd2 {[%clk 0:02:49]}  Bf6 {[%clk 0:02:47]} 10. O-O {[%clk 0:02:44]}  b6 {[%clk 0:02:42]} 11. Rb1 {[%clk 0:02:37]}  Bb7 {[%clk 0:02:41]} 12. Nxd5 {[%clk 0:02:36]}  exd5 {[%clk 0:02:41]} 13. b4 {[%clk 0:02:36]}  cxb4 {[%clk 0:02:39]} 14. axb4 {[%clk 0:02:36]}  d4 {[%clk 0:02:39]} 15. b5 {[%clk 0:02:33]}  Ne7 {[%clk 0:02:39]} 16. Bb4 {[%clk 0:02:29]}  Re8 {[%clk 0:02:37]} 17. Re1 {[%clk 0:02:29]}  Ng6 {[%clk 0:02:28]} 18. Rxe8+ {[%clk 0:02:16]}  Qxe8 {[%clk 0:02:29]} 19. Bc4 {[%clk 0:02:16]}  Qd7 {[%clk 0:02:20]} 20. Nd2 {[%clk 0:02:08]}  Nf4 {[%clk 0:02:15]} 21. Ne4 {[%clk 0:02:05]}  Re8 {[%clk 0:02:08]} 22. Bd2 {[%clk 0:01:52]}  Bxe4 {[%clk 0:02:04]} 23. Bxf4 {[%clk 0:01:46]}  Ba8 {[%clk 0:01:59]} 24. Qf1 {[%clk 0:01:41]}  h6 {[%clk 0:01:47]} 25. Re1 {[%clk 0:01:35]}  Rxe1 {[%clk 0:01:45]} 26. Qxe1 {[%clk 0:01:36]}  g5 {[%clk 0:01:45]} 27. Bg3 {[%clk 0:01:34]}  Qb7 {[%clk 0:01:44]} 28. Qe8+ {[%clk 0:01:29]}  Kg7 {[%clk 0:01:44]} 29. f3 {[%clk 0:01:29]}  h5 {[%clk 0:01:37]} 30. Be5 {[%clk 0:01:25]}  Bxe5 {[%clk 0:01:32]} 31. Qxe5+ {[%clk 0:01:26]}  f6 {[%clk 0:01:32]} 32. Qxd4 {[%clk 0:01:25]}  Qe7 {[%clk 0:01:30]} 33. Kf2 {[%clk 0:01:24]}  h4 {[%clk 0:01:28]} 34. Qe3 {[%clk 0:01:18]}  Kf8 {[%clk 0:01:27]} 35. Qxe7+ {[%clk 0:01:17]}  Kxe7 {[%clk 0:01:28]} 36. g3 {[%clk 0:01:17]}  hxg3+ {[%clk 0:01:28]} 37. hxg3 {[%clk 0:01:17]}  Kd6 {[%clk 0:01:28]} 38. d4 {[%clk 0:01:17]}  Bb7 {[%clk 0:01:26]} 39. Ke3 {[%clk 0:01:17]}  Bc8 {[%clk 0:01:26]} 40. Bd3 {[%clk 0:01:15]}  Bd7 {[%clk 0:01:25]} 41. c4 {[%clk 0:01:15]}  Be8 {[%clk 0:01:23]} 42. f4 {[%clk 0:01:15]}  gxf4+ {[%clk 0:01:23]} 43. Kxf4 {[%clk 0:01:14]}  Bd7 {[%clk 0:01:23]} 44. Bf5 {[%clk 0:01:07]}  Be8 {[%clk 0:01:22]} 45. Ke4 {[%clk 0:01:07]}  Bf7 {[%clk 0:01:21]} 46. Kd3 {[%clk 0:01:07]}  Bg8 {[%clk 0:01:13]} 47. Kc3 {[%clk 0:01:07]}  Bf7 {[%clk 0:01:10]} 48. Kb4 {[%clk 0:01:08]}  Kc7 {[%clk 0:01:08]} 49. c5 {[%clk 0:01:06]}  Bd5 {[%clk 0:01:08]} 50. Bd3 {[%clk 0:01:03]}  Bh1 {[%clk 0:01:07]} 51. Bc4 {[%clk 0:01:02]}  bxc5+ {[%clk 0:01:00]} 52. Kxc5 {[%clk 0:00:59]}  Kd7 {[%clk 0:00:52]} 53. d5 {[%clk 0:00:59]}  Kc7 {[%clk 0:00:52]} 54. Bd3 {[%clk 0:00:57]}  Bf3 {[%clk 0:00:47]} 55. Bf5 {[%clk 0:00:57]}  Be2 {[%clk 0:00:45]} 56. d6+ {[%clk 0:00:56]}  Kd8 {[%clk 0:00:45]} 57. Be4 {[%clk 0:00:54]}  Kd7 {[%clk 0:00:43]} 58. Bf5+ {[%clk 0:00:48]}  Kd8 {[%clk 0:00:43]} 59. Kb4 {[%clk 0:00:47]}  Bf1 {[%clk 0:00:41]} 60. Kc5 {[%clk 0:00:46]}  Be2 {[%clk 0:00:40]} 1/2-1/2


[Site "https://www.chess.com"]

[Event "Titled Tuesday Blitz April 26 Early 2022"]
[White "Moiseenko, Alexander"]
[Black "Paravyan, David"]
[WhiteFideId "14102560"]
[BlackFideId "4194985"]
[WhiteElo "2577"]
[BlackElo "2569"]
[Result "1-0"]
[Round "11"]
[TimeControl "180+1"]
[Date "2022.04.26"]
[WhiteClock "0:00:22"]
[BlackClock "0:00:48"]

1. d4 {[%clk 0:02:56]}  Nf6 {[%clk 0:02:59]} 2. Bg5 {[%clk 0:02:56]}  d5 {[%clk 0:02:58]} 3. Bxf6 {[%clk 0:02:54]}  gxf6 {[%clk 0:02:57]} 4. c4 {[%clk 0:02:48]}  e5 {[%clk 0:02:55]} 5. e3 {[%clk 0:02:47]}  Nc6 {[%clk 0:02:52]} 6. cxd5 {[%clk 0:02:44]}  Qxd5 {[%clk 0:02:53]} 7. Nc3 {[%clk 0:02:44]}  Bb4 {[%clk 0:02:53]} 8. a3 {[%clk 0:02:39]}  Bxc3+ {[%clk 0:02:53]} 9. bxc3 {[%clk 0:02:40]}  Rg8 {[%clk 0:02:53]} 10. Nf3 {[%clk 0:02:38]}  Be6 {[%clk 0:02:45]} 11. Qd2 {[%clk 0:02:25]}  O-O-O {[%clk 0:02:33]} 12. c4 {[%clk 0:02:12]}  Qa5 {[%clk 0:02:14]} 13. d5 {[%clk 0:02:09]}  Bg4 {[%clk 0:02:09]} 14. Be2 {[%clk 0:02:01]}  b6 {[%clk 0:01:46]} 15. h3 {[%clk 0:01:35]}  Bf5 {[%clk 0:01:46]} 16. Nh4 {[%clk 0:01:29]}  Be4 {[%clk 0:01:33]} 17. f3 {[%clk 0:00:56]}  Bc2 {[%clk 0:01:22]} 18. Rc1 {[%clk 0:00:55]}  Ba4 {[%clk 0:01:21]} 19. Qxa5 {[%clk 0:00:47]}  Nxa5 {[%clk 0:01:22]} 20. Kf2 {[%clk 0:00:48]}  Nb3 {[%clk 0:01:18]} 21. Rc3 {[%clk 0:00:47]}  Nc5 {[%clk 0:01:18]} 22. Nf5 {[%clk 0:00:46]}  Bd7 {[%clk 0:01:18]} 23. Ne7+ {[%clk 0:00:44]}  Kb7 {[%clk 0:01:19]} 24. Nxg8 {[%clk 0:00:45]}  Rxg8 {[%clk 0:01:20]} 25. g4 {[%clk 0:00:43]}  f5 {[%clk 0:01:19]} 26. Rg1 {[%clk 0:00:34]}  Rg6 {[%clk 0:01:19]} 27. gxf5 {[%clk 0:00:32]}  Rh6 {[%clk 0:01:19]} 28. e4 {[%clk 0:00:31]}  Rxh3 {[%clk 0:01:19]} 29. Rcc1 {[%clk 0:00:30]}  Rh6 {[%clk 0:01:05]} 30. Rh1 {[%clk 0:00:29]}  Rd6 {[%clk 0:01:05]} 31. Rxh7 {[%clk 0:00:29]}  f6 {[%clk 0:01:06]} 32. Rg1 {[%clk 0:00:28]}  Ba4 {[%clk 0:00:54]} 33. Rgg7 {[%clk 0:00:23]}  Nd7 {[%clk 0:00:54]} 34. Ke3 {[%clk 0:00:22]}  Kc8 {[%clk 0:00:53]} 35. Re7 {[%clk 0:00:22]}  Bb3 {[%clk 0:00:49]} 36. Re6 {[%clk 0:00:22]}  Nc5 {[%clk 0:00:47]} 37. Rxd6 {[%clk 0:00:22]}  cxd6 {[%clk 0:00:47]} 38. Rxa7 {[%clk 0:00:22]}  Nb7 {[%clk 0:00:48]} 39. Ra8+ {[%clk 0:00:22]}  Kc7 {[%clk 0:00:48]} 40. Rf8 {[%clk 0:00:22]} 1-0


[Site "https://www.chess.com"]

[Event "Titled Tuesday Blitz April 26 Early 2022"]
[White "Moroni, Luca Jr"]
[Black "Jobava, Baadur"]
[WhiteFideId "865834"]
[BlackFideId "13601520"]
[WhiteElo "2573"]
[BlackElo "2617"]
[Result "0-1"]
[Round "11"]
[TimeControl "180+1"]
[Date "2022.04.26"]
[WhiteClock "0:00:05"]
[BlackClock "0:01:48"]

1. d4 {[%clk 0:03:00]}  d5 {[%clk 0:02:45]} 2. c4 {[%clk 0:02:48]}  c6 {[%clk 0:02:45]} 3. Nc3 {[%clk 0:02:47]}  Nf6 {[%clk 0:02:46]} 4. Nf3 {[%clk 0:02:45]}  dxc4 {[%clk 0:02:46]} 5. e4 {[%clk 0:02:44]}  b5 {[%clk 0:02:46]} 6. Be2 {[%clk 0:02:44]}  Bg4 {[%clk 0:02:46]} 7. O-O {[%clk 0:02:38]}  e6 {[%clk 0:02:46]} 8. b3 {[%clk 0:01:56]}  b4 {[%clk 0:02:44]} 9. Na4 {[%clk 0:01:55]}  c3 {[%clk 0:02:43]} 10. Ne5 {[%clk 0:01:32]}  Bxe2 {[%clk 0:02:40]} 11. Qxe2 {[%clk 0:01:33]}  Qxd4 {[%clk 0:02:24]} 12. Nc4 {[%clk 0:01:08]}  Qxe4 {[%clk 0:02:20]} 13. Be3 {[%clk 0:01:07]}  Be7 {[%clk 0:02:16]} 14. Rad1 {[%clk 0:01:07]}  O-O {[%clk 0:02:15]} 15. Rd4 {[%clk 0:01:06]}  Qg6 {[%clk 0:02:10]} 16. Rfd1 {[%clk 0:00:56]}  Nd5 {[%clk 0:02:05]} 17. Rg4 {[%clk 0:00:53]}  Qf5 {[%clk 0:02:05]} 18. Bd4 {[%clk 0:00:42]}  g6 {[%clk 0:01:56]} 19. Ne3 {[%clk 0:00:36]}  Qh5 {[%clk 0:01:53]} 20. Nxd5 {[%clk 0:00:31]}  cxd5 {[%clk 0:01:54]} 21. Rd3 {[%clk 0:00:25]}  Nc6 {[%clk 0:01:48]} 22. Be3 {[%clk 0:00:06]}  Ne5 {[%clk 0:01:47]} 23. Rdd4 {[%clk 0:00:05]}  Nxg4 {[%clk 0:01:47]} 24. Rxg4 {[%clk 0:00:05]}  f5 {[%clk 0:01:48]} 0-1


[Site "https://www.chess.com"]

[Event "Titled Tuesday Blitz April 26 Early 2022"]
[White "Papasimakopoulos, Alexandros"]
[Black "Alekseenko, Kirill"]
[WhiteFideId "4244125"]
[BlackFideId "4135539"]
[WhiteElo "2340"]
[BlackElo "2682"]
[Result "0-1"]
[Round "11"]
[TimeControl "180+1"]
[Date "2022.04.26"]
[WhiteClock "0:00:05"]
[BlackClock "0:00:42"]

1. d4 {[%clk 0:03:00]}  d5 {[%clk 0:02:59]} 2. c4 {[%clk 0:03:01]}  dxc4 {[%clk 0:03:00]} 3. Nf3 {[%clk 0:03:01]}  a6 {[%clk 0:03:00]} 4. e3 {[%clk 0:03:01]}  Bg4 {[%clk 0:03:01]} 5. Bxc4 {[%clk 0:03:00]}  e6 {[%clk 0:03:01]} 6. Nbd2 {[%clk 0:02:58]}  Nf6 {[%clk 0:02:59]} 7. O-O {[%clk 0:02:58]}  Nc6 {[%clk 0:02:59]} 8. Be2 {[%clk 0:02:58]}  Bd6 {[%clk 0:02:59]} 9. Nc4 {[%clk 0:02:58]}  O-O {[%clk 0:02:58]} 10. b3 {[%clk 0:02:59]}  Nd5 {[%clk 0:02:57]} 11. Bb2 {[%clk 0:02:58]}  f5 {[%clk 0:02:57]} 12. a3 {[%clk 0:02:56]}  Nce7 {[%clk 0:02:58]} 13. Rc1 {[%clk 0:02:55]}  Nf6 {[%clk 0:02:58]} 14. h3 {[%clk 0:02:51]}  Bh5 {[%clk 0:02:58]} 15. Ng5 {[%clk 0:02:49]}  Bxe2 {[%clk 0:02:58]} 16. Qxe2 {[%clk 0:02:49]}  Qd7 {[%clk 0:02:59]} 17. Rfd1 {[%clk 0:02:44]}  Ned5 {[%clk 0:02:59]} 18. Ne5 {[%clk 0:02:36]}  Qe8 {[%clk 0:02:54]} 19. Ngf3 {[%clk 0:02:31]}  Ne4 {[%clk 0:02:53]} 20. Nc4 {[%clk 0:02:24]}  Qh5 {[%clk 0:02:48]} 21. Rc2 {[%clk 0:02:21]}  b5 {[%clk 0:02:41]} 22. Na5 {[%clk 0:02:13]}  Rf6 {[%clk 0:02:36]} 23. Ne5 {[%clk 0:02:10]}  Qxe2 {[%clk 0:02:36]} 24. Rxe2 {[%clk 0:02:11]}  Nec3 {[%clk 0:02:36]} 25. Ree1 {[%clk 0:02:07]}  Nxd1 {[%clk 0:02:34]} 26. Rxd1 {[%clk 0:02:07]}  Bxe5 {[%clk 0:02:25]} 27. dxe5 {[%clk 0:02:08]}  Rff8 {[%clk 0:02:25]} 28. Nc6 {[%clk 0:01:58]}  Kf7 {[%clk 0:02:19]} 29. Rc1 {[%clk 0:01:52]}  a5 {[%clk 0:02:18]} 30. Kf1 {[%clk 0:01:52]}  b4 {[%clk 0:02:16]} 31. a4 {[%clk 0:01:49]}  Ra6 {[%clk 0:02:17]} 32. Rc5 {[%clk 0:01:48]}  Rfa8 {[%clk 0:02:13]} 33. Ke2 {[%clk 0:01:47]}  Ke8 {[%clk 0:01:58]} 34. Nd4 {[%clk 0:01:45]}  Kd7 {[%clk 0:01:52]} 35. Nxf5 {[%clk 0:01:43]}  exf5 {[%clk 0:01:29]} 36. Rxd5+ {[%clk 0:01:43]}  Ke6 {[%clk 0:01:30]} 37. Rc5 {[%clk 0:01:42]}  c6 {[%clk 0:01:31]} 38. Bd4 {[%clk 0:01:35]}  Rd8 {[%clk 0:01:29]} 39. Kd3 {[%clk 0:01:30]}  g5 {[%clk 0:01:24]} 40. g4 {[%clk 0:01:23]}  Rf8 {[%clk 0:01:19]} 41. Rc2 {[%clk 0:01:13]}  h5 {[%clk 0:01:17]} 42. gxf5+ {[%clk 0:01:06]}  Rxf5 {[%clk 0:01:17]} 43. Ke4 {[%clk 0:01:06]}  c5 {[%clk 0:01:09]} 44. Bxc5 {[%clk 0:00:58]}  Rxe5+ {[%clk 0:01:09]} 45. Kd3 {[%clk 0:00:53]}  Rc6 {[%clk 0:01:09]} 46. Bd4 {[%clk 0:00:50]}  Rxc2 {[%clk 0:01:09]} 47. Bxe5 {[%clk 0:00:37]}  Rxf2 {[%clk 0:01:09]} 48. Bc7 {[%clk 0:00:38]}  Rf5 {[%clk 0:01:09]} 49. Kc4 {[%clk 0:00:23]}  g4 {[%clk 0:01:02]} 50. hxg4 {[%clk 0:00:23]}  hxg4 {[%clk 0:01:03]} 51. e4 {[%clk 0:00:24]}  Rf3 {[%clk 0:01:00]} 52. Bxa5 {[%clk 0:00:23]}  g3 {[%clk 0:00:58]} 53. Bb6 {[%clk 0:00:20]}  Kd7 {[%clk 0:00:55]} 54. Kxb4 {[%clk 0:00:19]}  Kc6 {[%clk 0:00:55]} 55. a5 {[%clk 0:00:18]}  Rf4 {[%clk 0:00:53]} 56. Kc3 {[%clk 0:00:17]}  Rxe4 {[%clk 0:00:52]} 57. Kd3 {[%clk 0:00:18]}  Re5 {[%clk 0:00:50]} 58. b4 {[%clk 0:00:18]}  g2 {[%clk 0:00:50]} 59. Kd2 {[%clk 0:00:18]}  Kb5 {[%clk 0:00:47]} 60. Bg1 {[%clk 0:00:12]}  Rf5 {[%clk 0:00:41]} 61. Ke2 {[%clk 0:00:06]}  Rf1 {[%clk 0:00:41]} 62. Bh2 {[%clk 0:00:06]}  g1=Q {[%clk 0:00:41]} 63. Bxg1 {[%clk 0:00:05]}  Rxg1 {[%clk 0:00:42]} 0-1


[Site "https://www.chess.com"]

[Event "Titled Tuesday Blitz April 26 Early 2022"]
[White "Prohorov, Olexandr"]
[Black "Martin, Lewis"]
[WhiteFideId "14105578"]
[BlackFideId "410551"]
[WhiteElo "1993"]
[BlackElo "2145"]
[Result "1-0"]
[Round "11"]
[TimeControl "180+1"]
[Date "2022.04.26"]
[WhiteClock "0:00:40"]
[BlackClock "0:00:14"]

1. e4 {[%clk 0:03:00]}  c5 {[%clk 0:02:59]} 2. c3 {[%clk 0:03:00]}  d5 {[%clk 0:02:59]} 3. exd5 {[%clk 0:03:00]}  Qxd5 {[%clk 0:02:59]} 4. d4 {[%clk 0:03:01]}  Nf6 {[%clk 0:02:59]} 5. Nf3 {[%clk 0:03:00]}  Bg4 {[%clk 0:02:58]} 6. Be2 {[%clk 0:02:59]}  e6 {[%clk 0:02:58]} 7. h3 {[%clk 0:02:59]}  Bh5 {[%clk 0:02:57]} 8. Na3 {[%clk 0:03:00]}  a6 {[%clk 0:02:55]} 9. Nc4 {[%clk 0:02:56]}  Nbd7 {[%clk 0:02:49]} 10. O-O {[%clk 0:02:50]}  Be7 {[%clk 0:02:48]} 11. Ne3 {[%clk 0:02:39]}  Qc6 {[%clk 0:02:46]} 12. dxc5 {[%clk 0:02:22]}  Bxc5 {[%clk 0:02:40]} 13. b4 {[%clk 0:02:17]}  Bb6 {[%clk 0:02:29]} 14. c4 {[%clk 0:02:14]}  O-O {[%clk 0:02:27]} 15. c5 {[%clk 0:02:14]}  Bc7 {[%clk 0:02:21]} 16. Bb2 {[%clk 0:02:14]}  Rad8 {[%clk 0:02:13]} 17. Qb3 {[%clk 0:02:13]}  e5 {[%clk 0:01:58]} 18. Rfd1 {[%clk 0:02:08]}  Rfe8 {[%clk 0:01:42]} 19. Rac1 {[%clk 0:02:07]}  Bxf3 {[%clk 0:01:30]} 20. Bxf3 {[%clk 0:02:07]}  e4 {[%clk 0:01:31]} 21. Be2 {[%clk 0:02:00]}  Ne5 {[%clk 0:01:30]} 22. a4 {[%clk 0:01:58]}  b5 {[%clk 0:01:07]} 23. cxb6 {[%clk 0:01:50]}  Qxb6 {[%clk 0:01:06]} 24. a5 {[%clk 0:01:41]}  Qb8 {[%clk 0:01:05]} 25. Ba1 {[%clk 0:01:13]}  Bxa5 {[%clk 0:00:57]} 26. Bxe5 {[%clk 0:00:56]}  Rxe5 {[%clk 0:00:55]} 27. Nc4 {[%clk 0:00:55]}  Rb5 {[%clk 0:00:14]} 28. Nxa5 {[%clk 0:00:40]} 1-0


[Site "https://www.chess.com"]